[Event "Late-Titled-Tuesday-Blitz-February-13-2024"]
[Site "Chess.com"]
[Date "2024.02.13"]
[Round "5"]
[White "GianmarcoVaR"]
[Black "DonkyDonkyDonkey"]
[Result "1/2-1/2"]
[WhiteElo "2728"]
[BlackElo "2951"]
[TimeControl "180+1"]
[EndTime "14:56:25 PST"]
[Termination "Game drawn by repetition"]

1. e4 {[%clk 0:03:00]} 1... c5 {[%clk 0:02:59.4]} 2. Nf3 {[%clk 0:02:59.7]} 2...
d6 {[%clk 0:03:00]} 3. d4 {[%clk 0:02:57.8]} 3... cxd4 {[%clk 0:03:00.9]} 4.
Nxd4 {[%clk 0:02:58.1]} 4... Nf6 {[%clk 0:03:01.4]} 5. Nc3 {[%clk 0:02:58.2]}
5... a6 {[%clk 0:03:02.1]} 6. g3 {[%clk 0:02:57.9]} 6... g6 {[%clk 0:03:01.8]}
7. Bg2 {[%clk 0:02:56.8]} 7... Bg7 {[%clk 0:03:02.5]} 8. O-O {[%clk 0:02:50.7]}
8... O-O {[%clk 0:03:02.9]} 9. h3 {[%clk 0:02:47.6]} 9... Qc7 {[%clk 0:03:01.1]}
10. Be3 {[%clk 0:02:45]} 10... Nc6 {[%clk 0:03:01.1]} 11. Nde2 {[%clk 0:02:42]}
11... b5 {[%clk 0:02:58]} 12. a4 {[%clk 0:02:22.6]} 12... b4 {[%clk 0:02:55.6]}
13. Nd5 {[%clk 0:02:23.1]} 13... Nxd5 {[%clk 0:02:55.5]} 14. exd5 {[%clk
0:02:24]} 14... Ne5 {[%clk 0:02:55.6]} 15. Bd4 {[%clk 0:02:24.6]} 15... Bb7
{[%clk 0:02:52.8]} 16. Qd2 {[%clk 0:02:14]} 16... a5 {[%clk 0:02:49.4]} 17. b3
{[%clk 0:02:09.1]} 17... Rac8 {[%clk 0:02:45]} 18. Rac1 {[%clk 0:02:07.3]} 18...
e6 {[%clk 0:02:31]} 19. Nf4 {[%clk 0:01:27.8]} 19... Qe7 {[%clk 0:02:25]} 20.
Rfe1 {[%clk 0:01:26.7]} 20... Rfd8 {[%clk 0:02:04.3]} 21. Bb6 {[%clk 0:01:23]}
21... Rf8 {[%clk 0:02:02.9]} 22. Bxa5 {[%clk 0:01:23.3]} 22... exd5 {[%clk
0:01:56.2]} 23. Nxd5 {[%clk 0:01:09.6]} 23... Qd7 {[%clk 0:01:52.1]} 24. Bxb4
{[%clk 0:01:01.8]} 24... Rb8 {[%clk 0:01:39.3]} 25. Ba3 {[%clk 0:00:53.9]} 25...
Kh8 {[%clk 0:01:37.4]} 26. c4 {[%clk 0:00:53.4]} 26... Bxd5 {[%clk 0:01:29.5]}
27. Qxd5 {[%clk 0:00:54]} 27... Rxb3 {[%clk 0:01:29.7]} 28. Bxd6 {[%clk
0:00:53.1]} 28... Rd3 {[%clk 0:01:29.6]} 29. Bxf8 {[%clk 0:00:43.2]} 29... Rxd5
{[%clk 0:01:28.8]} 30. Bxg7+ {[%clk 0:00:43.8]} 30... Kxg7 {[%clk 0:01:28.8]}
31. Bxd5 {[%clk 0:00:31.9]} 31... Nd3 {[%clk 0:01:27.8]} 32. Rb1 {[%clk
0:00:29.4]} 32... Nxe1 {[%clk 0:01:26.3]} 33. Rxe1 {[%clk 0:00:30.3]} 33... Qxa4
{[%clk 0:01:26.1]} 34. Re7 {[%clk 0:00:28.3]} 34... Kf6 {[%clk 0:01:22.1]} 35.
Rxf7+ {[%clk 0:00:28.4]} 35... Ke5 {[%clk 0:01:22.7]} 36. Rxh7 {[%clk
0:00:24.6]} 36... Kd4 {[%clk 0:01:20.6]} 37. Rf7 {[%clk 0:00:22.8]} 37... Kd3
{[%clk 0:01:19.8]} 38. h4 {[%clk 0:00:22]} 38... Ke2 {[%clk 0:01:19.1]} 39. Kg2
{[%clk 0:00:20.6]} 39... Qa3 {[%clk 0:01:17.9]} 40. Rf6 {[%clk 0:00:17.6]} 40...
Qc1 {[%clk 0:01:16.4]} 41. Re6+ {[%clk 0:00:17.1]} 41... Kd2 {[%clk 0:01:16.2]}
42. Rxg6 {[%clk 0:00:17.5]} 42... Ke2 {[%clk 0:01:15.3]} 43. Re6+ {[%clk
0:00:17.7]} 43... Kd2 {[%clk 0:01:15.9]} 44. Re3 {[%clk 0:00:17.5]} 44... Qa1
{[%clk 0:01:14.7]} 45. g4 {[%clk 0:00:16.6]} 45... Qd4 {[%clk 0:01:13.9]} 46.
Re4 {[%clk 0:00:13.3]} 46... Qf6 {[%clk 0:01:13]} 47. g5 {[%clk 0:00:12.7]}
47... Qf5 {[%clk 0:01:13.6]} 48. Kg3 {[%clk 0:00:12.6]} 48... Kd3 {[%clk
0:01:11.5]} 49. Rf4 {[%clk 0:00:10.7]} 49... Qe5 {[%clk 0:01:10.9]} 50. g6
{[%clk 0:00:08.3]} 50... Ke2 {[%clk 0:01:09.7]} 51. Kg4 {[%clk 0:00:08]} 51...
Qg7 {[%clk 0:01:06.8]} 52. h5 {[%clk 0:00:08]} 52... Qa1 {[%clk 0:01:06.5]} 53.
Kg5 {[%clk 0:00:06.6]} 53... Qg1+ {[%clk 0:01:05.1]} 54. Kf6 {[%clk 0:00:05.4]}
54... Qa1+ {[%clk 0:01:05.1]} 55. Ke6 {[%clk 0:00:03.7]} 55... Qc1 {[%clk
0:01:03.2]} 56. Re4+ {[%clk 0:00:03.5]} 56... Kd3 {[%clk 0:01:02.9]} 57. Kf7
{[%clk 0:00:02.7]} 57... Qg5 {[%clk 0:01:01.9]} 58. Re6 {[%clk 0:00:02.8]} 58...
Qxh5 {[%clk 0:01:01.5]} 59. Rf6 {[%clk 0:00:02.8]} 59... Kd4 {[%clk 0:01:00.4]}
60. f4 {[%clk 0:00:02.5]} 60... Qh8 {[%clk 0:00:53]} 61. g7 {[%clk 0:00:02.4]}
61... Qh5+ {[%clk 0:00:53.1]} 62. Kf8 {[%clk 0:00:02.8]} 62... Qh4 {[%clk
0:00:52.2]} 63. Kf7 {[%clk 0:00:02.5]} 63... Qh5+ {[%clk 0:00:52.5]} 64. Kf8
{[%clk 0:00:02.9]} 64... Qh4 {[%clk 0:00:52.9]} 65. Rd6 {[%clk 0:00:03.2]} 65...
Qxf4+ {[%clk 0:00:51.8]} 66. Ke7 {[%clk 0:00:03.5]} 66... Qg5+ {[%clk
0:00:51.4]} 67. Kf8 {[%clk 0:00:03.8]} 67... Qf4+ {[%clk 0:00:51.4]} 68. Ke7
{[%clk 0:00:04]} 68... Qg5+ {[%clk 0:00:49.6]} 69. Kf8 {[%clk 0:00:03.6]} 69...
Qf4+ {[%clk 0:00:49.9]} 1/2-1/2

[Event "Late-Titled-Tuesday-Blitz-February-13-2024"]
[Site "Chess.com"]
[Date "2024.02.13"]
[Round "5"]
[White "Fandorine"]
[Black "KacperKacprzak"]
[Result "1-0"]
[WhiteElo "2953"]
[BlackElo "2716"]
[TimeControl "180+1"]
[EndTime "14:56:29 PST"]
[Termination "Fandorine won by resignation"]

1. d4 {[%clk 0:03:00.9]} 1... Nf6 {[%clk 0:02:57.5]} 2. c4 {[%clk 0:03:00.7]}
2... e6 {[%clk 0:02:54.3]} 3. Nc3 {[%clk 0:02:59.5]} 3... d5 {[%clk 0:02:53]} 4.
cxd5 {[%clk 0:02:57]} 4... exd5 {[%clk 0:02:53.9]} 5. Bg5 {[%clk 0:02:56.5]}
5... c6 {[%clk 0:02:54.3]} 6. e3 {[%clk 0:02:56.4]} 6... Bd6 {[%clk 0:02:52.2]}
7. Bd3 {[%clk 0:02:55.2]} 7... O-O {[%clk 0:02:52.3]} 8. Nge2 {[%clk 0:02:54.3]}
8... Re8 {[%clk 0:02:52.1]} 9. Qc2 {[%clk 0:02:54.1]} 9... h6 {[%clk 0:02:52.3]}
10. Bh4 {[%clk 0:02:53.4]} 10... a5 {[%clk 0:02:52.4]} 11. h3 {[%clk 0:02:50.8]}
11... Na6 {[%clk 0:02:51.2]} 12. a3 {[%clk 0:02:50.6]} 12... Nc7 {[%clk
0:02:50.5]} 13. O-O {[%clk 0:02:51]} 13... Ne6 {[%clk 0:02:48.6]} 14. Rae1
{[%clk 0:02:51.1]} 14... Ng5 {[%clk 0:02:47.8]} 15. f4 {[%clk 0:02:35.3]} 15...
Ne6 {[%clk 0:02:22]} 16. Bf2 {[%clk 0:02:10.1]} 16... b5 {[%clk 0:02:19.5]} 17.
Ng3 {[%clk 0:02:09.3]} 17... b4 {[%clk 0:02:07.2]} 18. axb4 {[%clk 0:02:01.4]}
18... axb4 {[%clk 0:02:08.1]} 19. Na4 {[%clk 0:02:01]} 19... Ba6 {[%clk
0:02:07.1]} 20. Bxa6 {[%clk 0:01:58.6]} 20... Rxa6 {[%clk 0:02:08]} 21. b3
{[%clk 0:01:57.8]} 21... Ne4 {[%clk 0:01:57.5]} 22. Nxe4 {[%clk 0:01:53.7]}
22... dxe4 {[%clk 0:01:58.4]} 23. Qxe4 {[%clk 0:01:16.3]} 23... Nxf4 {[%clk
0:01:58.1]} 24. Qf5 {[%clk 0:01:16.4]} 24... Nd5 {[%clk 0:01:50.5]} 25. e4
{[%clk 0:01:10.6]} 25... Nc3 {[%clk 0:01:48.2]} 26. Bh4 {[%clk 0:00:51.3]} 26...
Qc7 {[%clk 0:01:46.9]} 27. e5 {[%clk 0:00:38.8]} 27... Bf8 {[%clk 0:01:44.5]}
28. e6 {[%clk 0:00:39.2]} 28... fxe6 {[%clk 0:01:17.5]} 29. Rxe6 {[%clk
0:00:28.4]} 29... Raa8 {[%clk 0:01:17.4]} 30. Nxc3 {[%clk 0:00:10.9]} 30... bxc3
{[%clk 0:01:16.7]} 31. Rxe8 {[%clk 0:00:08.4]} 31... Rxe8 {[%clk 0:01:17.6]} 32.
Qd3 {[%clk 0:00:08.7]} 32... Bb4 {[%clk 0:01:12.8]} 33. Qc4+ {[%clk 0:00:08.5]}
33... Kh7 {[%clk 0:00:48.3]} 34. Qxb4 {[%clk 0:00:09.1]} 34... Re4 {[%clk
0:00:48.6]} 35. Bf2 {[%clk 0:00:08.5]} 35... c2 {[%clk 0:00:37.4]} 36. Qc3
{[%clk 0:00:08.4]} 36... Qe7 {[%clk 0:00:34.2]} 37. Qxc2 {[%clk 0:00:08.4]}
37... Kh8 {[%clk 0:00:33.1]} 38. Qxc6 {[%clk 0:00:08.8]} 38... Re2 {[%clk
0:00:32.5]} 39. Qc8+ {[%clk 0:00:08.9]} 39... Kh7 {[%clk 0:00:32.6]} 40. Qf5+
{[%clk 0:00:09.5]} 40... Kg8 {[%clk 0:00:32.9]} 41. d5 {[%clk 0:00:09.9]} 41...
Re5 {[%clk 0:00:31.7]} 42. Qc8+ {[%clk 0:00:10]} 42... Kh7 {[%clk 0:00:32.1]}
43. Qc2+ {[%clk 0:00:10.6]} 43... Kg8 {[%clk 0:00:31.4]} 44. Qd3 {[%clk
0:00:11.2]} 44... Qd7 {[%clk 0:00:28.1]} 45. d6 {[%clk 0:00:10.7]} 45... Rg5
{[%clk 0:00:28.1]} 46. Bg3 {[%clk 0:00:07]} 46... h5 {[%clk 0:00:24.4]} 47. Kh2
{[%clk 0:00:06.9]} 47... g6 {[%clk 0:00:12.6]} 48. Qc4+ {[%clk 0:00:07.1]} 48...
Kg7 {[%clk 0:00:11.7]} 49. Qc7 {[%clk 0:00:06.9]} 49... Qxc7 {[%clk 0:00:09.9]}
50. dxc7 {[%clk 0:00:07.8]} 50... Rc5 {[%clk 0:00:09.4]} 51. b4 {[%clk
0:00:08.5]} 51... Rc2 {[%clk 0:00:09.2]} 52. b5 {[%clk 0:00:09]} 52... g5 {[%clk
0:00:10.1]} 53. b6 {[%clk 0:00:09]} 53... h4 {[%clk 0:00:11]} 54. Be5+ {[%clk
0:00:08.9]} 54... Kg6 {[%clk 0:00:11.9]} 55. b7 {[%clk 0:00:09.2]} 55... g4
{[%clk 0:00:12.8]} 56. hxg4 {[%clk 0:00:08.8]} 1-0

[Event "Late-Titled-Tuesday-Blitz-February-13-2024"]
[Site "Chess.com"]
[Date "2024.02.13"]
[Round "5"]
[White "BozeKat"]
[Black "Rawnsdale"]
[Result "0-1"]
[WhiteElo "2040"]
[BlackElo "2532"]
[TimeControl "180+1"]
[EndTime "14:56:29 PST"]
[Termination "Rawnsdale won on time"]

1. c4 {[%clk 0:03:00.9]} 1... Nf6 {[%clk 0:02:54.2]} 2. g3 {[%clk 0:03:01]} 2...
e6 {[%clk 0:02:54.5]} 3. Bg2 {[%clk 0:03:00.2]} 3... d5 {[%clk 0:02:55]} 4. d4
{[%clk 0:02:54]} 4... Be7 {[%clk 0:02:43.1]} 5. Nf3 {[%clk 0:02:53.2]} 5... O-O
{[%clk 0:02:29.9]} 6. O-O {[%clk 0:02:52.5]} 6... dxc4 {[%clk 0:02:29.2]} 7. Ne5
{[%clk 0:02:50.5]} 7... Nc6 {[%clk 0:02:26.6]} 8. Nxc6 {[%clk 0:02:44.8]} 8...
bxc6 {[%clk 0:02:20.5]} 9. Bxc6 {[%clk 0:02:45.3]} 9... Rb8 {[%clk 0:02:21.4]}
10. Bg2 {[%clk 0:02:39.6]} 10... Bb7 {[%clk 0:02:20.5]} 11. f3 {[%clk
0:02:31.1]} 11... c5 {[%clk 0:02:18.8]} 12. dxc5 {[%clk 0:02:27.4]} 12... Bxc5+
{[%clk 0:02:19.7]} 13. Kh1 {[%clk 0:02:26.3]} 13... Qe7 {[%clk 0:02:07.3]} 14.
Qc2 {[%clk 0:02:22]} 14... Rfc8 {[%clk 0:02:01]} 15. Bg5 {[%clk 0:02:19.3]}
15... h6 {[%clk 0:01:57.4]} 16. Bd2 {[%clk 0:02:15.1]} 16... Nd5 {[%clk
0:01:55.1]} 17. e4 {[%clk 0:01:45.4]} 17... Nb6 {[%clk 0:01:45.3]} 18. Nc3
{[%clk 0:01:42.8]} 18... Rd8 {[%clk 0:01:35.6]} 19. Rad1 {[%clk 0:01:34.8]}
19... Rd3 {[%clk 0:01:28.6]} 20. Rfe1 {[%clk 0:01:16.3]} 20... Rbd8 {[%clk
0:01:26.3]} 21. f4 {[%clk 0:01:01.1]} 21... Qd7 {[%clk 0:01:16.4]} 22. Bc1
{[%clk 0:00:53.2]} 22... Bb4 {[%clk 0:00:58.1]} 23. Bf1 {[%clk 0:00:51.3]} 23...
Bxc3 {[%clk 0:00:48.3]} 24. Bxd3 {[%clk 0:00:46.8]} 24... Bxe1 {[%clk 0:00:48]}
25. Be2 {[%clk 0:00:44.5]} 25... Qc7 {[%clk 0:00:35.3]} 26. Rxe1 {[%clk
0:00:43.1]} 26... f5 {[%clk 0:00:28.4]} 27. Bf3 {[%clk 0:00:42.3]} 27... Rd3
{[%clk 0:00:28.4]} 28. Kg2 {[%clk 0:00:36.8]} 28... Rxf3 {[%clk 0:00:11.7]} 29.
Kxf3 {[%clk 0:00:32.6]} 29... Bxe4+ {[%clk 0:00:12]} 30. Rxe4 {[%clk 0:00:33]}
30... fxe4+ {[%clk 0:00:12.9]} 31. Qxe4 {[%clk 0:00:32.3]} 31... Kf7 {[%clk
0:00:13.8]} 32. Bd2 {[%clk 0:00:22.6]} 32... Nd5 {[%clk 0:00:13.4]} 33. f5
{[%clk 0:00:19.9]} 33... Qd7 {[%clk 0:00:13.4]} 34. fxe6+ {[%clk 0:00:18.7]}
34... Qxe6 {[%clk 0:00:14.3]} 35. Qxe6+ {[%clk 0:00:18.9]} 35... Kxe6 {[%clk
0:00:15.2]} 36. Ke4 {[%clk 0:00:17.8]} 36... h5 {[%clk 0:00:14.6]} 37. Kd4
{[%clk 0:00:17.6]} 37... Nb6 {[%clk 0:00:14]} 38. Ba5 {[%clk 0:00:16.3]} 38...
Na4 {[%clk 0:00:14.2]} 39. Bc3 {[%clk 0:00:14.2]} 39... Nb6 {[%clk 0:00:14]} 40.
Kc5 {[%clk 0:00:13.8]} 40... g5 {[%clk 0:00:12.9]} 41. Kb4 {[%clk 0:00:13.8]}
41... Kd5 {[%clk 0:00:12.8]} 42. a4 {[%clk 0:00:14.2]} 42... Nd7 {[%clk
0:00:09.7]} 43. Kb5 {[%clk 0:00:12.6]} 43... Nc5 {[%clk 0:00:10.2]} 44. a5
{[%clk 0:00:11]} 44... Ne4 {[%clk 0:00:08]} 45. Ka6 {[%clk 0:00:08.7]} 45... h4
{[%clk 0:00:07.5]} 46. Kxa7 {[%clk 0:00:08.3]} 46... hxg3 {[%clk 0:00:07.4]} 47.
hxg3 {[%clk 0:00:07.6]} 47... Nxg3 {[%clk 0:00:08.3]} 48. Kb7 {[%clk 0:00:07.3]}
48... Nf5 {[%clk 0:00:08.4]} 49. a6 {[%clk 0:00:06.9]} 49... Nd6+ {[%clk
0:00:08.8]} 50. Kb6 {[%clk 0:00:02]} 50... g4 {[%clk 0:00:07.4]} 51. Be1 {[%clk
0:00:01.2]} 51... c3 {[%clk 0:00:03.3]} 0-1

[Event "Late-Titled-Tuesday-Blitz-February-13-2024"]
[Site "Chess.com"]
[Date "2024.02.13"]
[Round "5"]
[White "hristos03"]
[Black "miraitrunks"]
[Result "0-1"]
[WhiteElo "2365"]
[BlackElo "2216"]
[TimeControl "180+1"]
[EndTime "14:56:29 PST"]
[Termination "miraitrunks won by resignation"]

1. e4 {[%clk 0:03:00.9]} 1... c5 {[%clk 0:02:59.5]} 2. Nf3 {[%clk 0:03:00.7]}
2... d6 {[%clk 0:02:59.9]} 3. d4 {[%clk 0:03:00.5]} 3... cxd4 {[%clk 0:03:00.8]}
4. Nxd4 {[%clk 0:03:01.2]} 4... Nf6 {[%clk 0:03:01]} 5. Nc3 {[%clk 0:03:01.3]}
5... g6 {[%clk 0:03:01.2]} 6. Be3 {[%clk 0:02:59.4]} 6... Bg7 {[%clk 0:03:01.5]}
7. f3 {[%clk 0:02:57.8]} 7... O-O {[%clk 0:03:01.7]} 8. Qd2 {[%clk 0:02:53.3]}
8... Nc6 {[%clk 0:03:01.8]} 9. O-O-O {[%clk 0:02:51.4]} 9... d5 {[%clk
0:03:02.2]} 10. exd5 {[%clk 0:02:49.7]} 10... Nxd5 {[%clk 0:03:03.1]} 11. Nxc6
{[%clk 0:02:50.3]} 11... bxc6 {[%clk 0:03:03.4]} 12. Bd4 {[%clk 0:02:51]} 12...
e5 {[%clk 0:02:48.2]} 13. Bc5 {[%clk 0:02:51.1]} 13... Re8 {[%clk 0:02:40.7]}
14. Ne4 {[%clk 0:02:27.5]} 14... Qh4 {[%clk 0:02:28.8]} 15. g3 {[%clk
0:02:02.3]} 15... Qh5 {[%clk 0:02:26.7]} 16. Qf2 {[%clk 0:01:48.2]} 16... Bh3
{[%clk 0:02:01.6]} 17. Bc4 {[%clk 0:01:28.1]} 17... Rad8 {[%clk 0:01:51.3]} 18.
Kb1 {[%clk 0:01:19.9]} 18... Be6 {[%clk 0:01:41]} 19. Bb3 {[%clk 0:01:05.2]}
19... Rb8 {[%clk 0:01:30.1]} 20. h4 {[%clk 0:00:55.9]} 20... f5 {[%clk
0:01:29.6]} 21. Ng5 {[%clk 0:00:49.2]} 21... a5 {[%clk 0:01:22.8]} 22. Nxe6
{[%clk 0:00:42]} 22... Rxe6 {[%clk 0:01:22.4]} 23. Rxd5 {[%clk 0:00:34.4]} 23...
cxd5 {[%clk 0:01:20.9]} 24. Bxd5 {[%clk 0:00:34.4]} 24... Kf7 {[%clk 0:01:21.1]}
25. Qd2 {[%clk 0:00:23.4]} 25... Re8 {[%clk 0:00:55.2]} 26. Rf1 {[%clk
0:00:12.3]} 26... f4 {[%clk 0:00:40.8]} 27. gxf4 {[%clk 0:00:09.8]} 27... Qxh4
{[%clk 0:00:40.6]} 28. fxe5 {[%clk 0:00:05.9]} 28... Bxe5 {[%clk 0:00:23.9]} 29.
Qxa5 {[%clk 0:00:06]} 29... Qh3 {[%clk 0:00:18.6]} 30. Qb5 {[%clk 0:00:04.7]}
30... Rb8 {[%clk 0:00:14.7]} 31. Qd7+ {[%clk 0:00:04.3]} 31... Kf6 {[%clk
0:00:13.1]} 32. Qxe6+ {[%clk 0:00:04.8]} 32... Qxe6 {[%clk 0:00:13.5]} 33. Bxe6
{[%clk 0:00:05.7]} 33... Kxe6 {[%clk 0:00:14]} 34. b3 {[%clk 0:00:04.1]} 34...
h5 {[%clk 0:00:13.2]} 35. Be3 {[%clk 0:00:02.5]} 35... h4 {[%clk 0:00:13.2]} 36.
Bg5 {[%clk 0:00:02.1]} 36... h3 {[%clk 0:00:13.1]} 37. f4 {[%clk 0:00:02.5]}
37... Bc3 {[%clk 0:00:10.6]} 38. Rh1 {[%clk 0:00:01.2]} 38... Rh8 {[%clk
0:00:10.4]} 39. Kc1 {[%clk 0:00:01.9]} 39... Kf5 {[%clk 0:00:10.5]} 40. Kd1
{[%clk 0:00:02.6]} 40... Kg4 {[%clk 0:00:10.9]} 41. Ke2 {[%clk 0:00:03.2]} 41...
Kg3 {[%clk 0:00:11.3]} 42. Be7 {[%clk 0:00:03]} 42... Bd4 {[%clk 0:00:11.5]} 43.
Bd6 {[%clk 0:00:03.2]} 43... Kg2 {[%clk 0:00:11.5]} 44. Rd1 {[%clk 0:00:02.7]}
44... h2 {[%clk 0:00:12]} 45. f5 {[%clk 0:00:03]} 45... h1=Q {[%clk 0:00:11.4]}
46. Rxd4 {[%clk 0:00:03.9]} 46... Qf1+ {[%clk 0:00:10.9]} 0-1

[Event "Late-Titled-Tuesday-Blitz-February-13-2024"]
[Site "Chess.com"]
[Date "2024.02.13"]
[Round "5"]
[White "delqate"]
[Black "AldokhinIvan"]
[Result "0-1"]
[WhiteElo "2497"]
[BlackElo "2661"]
[TimeControl "180+1"]
[EndTime "14:56:30 PST"]
[Termination "AldokhinIvan won on time"]

1. d4 {[%clk 0:03:00.9]} 1... Nf6 {[%clk 0:02:58.8]} 2. Bf4 {[%clk 0:03:00.2]}
2... d6 {[%clk 0:02:57.9]} 3. Nc3 {[%clk 0:02:59.5]} 3... b6 {[%clk 0:02:58.1]}
4. e4 {[%clk 0:02:59.3]} 4... Bb7 {[%clk 0:02:58.7]} 5. e5 {[%clk 0:02:52.7]}
5... Nfd7 {[%clk 0:02:47.8]} 6. e6 {[%clk 0:02:33.1]} 6... fxe6 {[%clk
0:02:47.6]} 7. Qg4 {[%clk 0:02:21.6]} 7... Nf6 {[%clk 0:02:42.9]} 8. Qxe6 {[%clk
0:02:20]} 8... Qd7 {[%clk 0:02:43.3]} 9. Qxd7+ {[%clk 0:02:05.1]} 9... Nbxd7
{[%clk 0:02:42.9]} 10. O-O-O {[%clk 0:02:02.4]} 10... e5 {[%clk 0:02:36]} 11.
dxe5 {[%clk 0:01:58.1]} 11... dxe5 {[%clk 0:02:36.9]} 12. Bg5 {[%clk 0:01:52.9]}
12... Bc5 {[%clk 0:02:24]} 13. Bb5 {[%clk 0:01:38]} 13... O-O-O {[%clk
0:02:01.8]} 14. f3 {[%clk 0:01:37.1]} 14... h6 {[%clk 0:01:56.8]} 15. Bxf6
{[%clk 0:01:24.2]} 15... Nxf6 {[%clk 0:01:56.4]} 16. Nge2 {[%clk 0:01:22.7]}
16... e4 {[%clk 0:01:52.5]} 17. Rhf1 {[%clk 0:00:56.3]} 17... exf3 {[%clk
0:01:48.2]} 18. gxf3 {[%clk 0:00:57.2]} 18... Rhf8 {[%clk 0:01:40.1]} 19. Rxd8+
{[%clk 0:00:52.3]} 19... Kxd8 {[%clk 0:01:33]} 20. Kb1 {[%clk 0:00:49.8]} 20...
Kc8 {[%clk 0:01:21.7]} 21. Nf4 {[%clk 0:00:48.2]} 21... Bd6 {[%clk 0:01:06]} 22.
Ne6 {[%clk 0:00:44.9]} 22... Rf7 {[%clk 0:01:04.6]} 23. f4 {[%clk 0:00:38.5]}
23... Nd5 {[%clk 0:01:00.8]} 24. Ne4 {[%clk 0:00:12.8]} 24... Bxf4 {[%clk
0:00:56.9]} 25. Nxf4 {[%clk 0:00:12.2]} 25... Rxf4 {[%clk 0:00:55]} 26. Rxf4
{[%clk 0:00:11.5]} 26... Nxf4 {[%clk 0:00:55]} 27. Ng3 {[%clk 0:00:12.1]} 27...
g6 {[%clk 0:00:52.7]} 28. Kc1 {[%clk 0:00:12.1]} 28... a6 {[%clk 0:00:48.5]} 29.
Bc4 {[%clk 0:00:10.3]} 29... Kd7 {[%clk 0:00:47.8]} 30. Kd2 {[%clk 0:00:10.2]}
30... b5 {[%clk 0:00:48]} 31. Bf1 {[%clk 0:00:07.8]} 31... Ke6 {[%clk
0:00:47.5]} 32. Ke3 {[%clk 0:00:07.7]} 32... Ke5 {[%clk 0:00:47.2]} 33. a4
{[%clk 0:00:05.7]} 33... bxa4 {[%clk 0:00:46]} 34. Bc4 {[%clk 0:00:04]} 34... g5
{[%clk 0:00:44.4]} 35. Kf2 {[%clk 0:00:03.1]} 35... h5 {[%clk 0:00:44.1]} 36.
Ke3 {[%clk 0:00:03.2]} 36... h4 {[%clk 0:00:43.7]} 37. Nf1 {[%clk 0:00:03.4]}
37... g4 {[%clk 0:00:41.7]} 38. Bf7 {[%clk 0:00:02]} 38... Nd5+ {[%clk
0:00:36.1]} 39. Kd3 {[%clk 0:00:01.2]} 39... Nf4+ {[%clk 0:00:37]} 40. Ke3
{[%clk 0:00:01.5]} 40... Bd5 {[%clk 0:00:34.5]} 41. Be8 {[%clk 0:00:01.4]} 41...
c6 {[%clk 0:00:30.9]} 42. Bd7 {[%clk 0:00:01.2]} 42... Ne6 {[%clk 0:00:18.5]}
43. Bc8 {[%clk 0:00:01.2]} 43... Nd4 {[%clk 0:00:17]} 44. Bxa6 {[%clk
0:00:01.5]} 44... Nxc2+ {[%clk 0:00:16.4]} 45. Kd2 {[%clk 0:00:02.4]} 45... Nd4
{[%clk 0:00:16.3]} 46. Ne3 {[%clk 0:00:02.6]} 46... Nf3+ {[%clk 0:00:15]} 47.
Ke2 {[%clk 0:00:02.1]} 47... Nxh2 {[%clk 0:00:15.9]} 48. Bc8 {[%clk 0:00:01.3]}
48... Bf3+ {[%clk 0:00:15.1]} 49. Kf2 {[%clk 0:00:01.2]} 49... Kf4 {[%clk
0:00:14.9]} 0-1